[Event "Titled Tuesday Blitz March 29 Early 2022"]
[White "Heinemann, Josefine"]
[Black "Yang, Kaiqi"]
[WhiteFideId "12900460"]
[BlackFideId "8604398"]
[WhiteElo "2300"]
[BlackElo "2373"]
[Result "1-0"]
[Round "07"]
[TimeControl "180+1"]
[Date "2022.03.30"]
[WhiteClock "0:00:10"]
[BlackClock "0:00:01"]

1. Nf3 {[%clk 0:03:00]}  Nf6 {[%clk 0:02:59]} 2. g3 {[%clk 0:03:00]}  g6 {[%clk 0:02:59]} 3. Bg2 {[%clk 0:02:56]}  Bg7 {[%clk 0:03:00]} 4. O-O {[%clk 0:02:57]}  O-O {[%clk 0:03:00]} 5. d4 {[%clk 0:02:56]}  d6 {[%clk 0:03:00]} 6. c4 {[%clk 0:02:55]}  c5 {[%clk 0:03:01]} 7. Nc3 {[%clk 0:02:49]}  Nc6 {[%clk 0:03:01]} 8. d5 {[%clk 0:02:48]}  Na5 {[%clk 0:03:00]} 9. Qd3 {[%clk 0:02:43]}  a6 {[%clk 0:02:55]} 10. e4 {[%clk 0:02:34]}  b5 {[%clk 0:02:47]} 11. cxb5 {[%clk 0:02:19]}  axb5 {[%clk 0:02:45]} 12. Nxb5 {[%clk 0:02:13]}  Ba6 {[%clk 0:02:26]} 13. a4 {[%clk 0:02:09]}  c4 {[%clk 0:02:20]} 14. Qe2 {[%clk 0:02:06]}  Nd7 {[%clk 0:01:54]} 15. Rb1 {[%clk 0:02:00]}  Nc5 {[%clk 0:01:31]} 16. Nc3 {[%clk 0:01:47]}  Nab3 {[%clk 0:01:20]} 17. Bf4 {[%clk 0:01:30]}  Nd3 {[%clk 0:01:20]} 18. Be3 {[%clk 0:01:22]}  Rb8 {[%clk 0:01:06]} 19. Rfd1 {[%clk 0:01:04]}  Qa5 {[%clk 0:01:05]} 20. Qc2 {[%clk 0:00:57]}  Rfc8 {[%clk 0:00:52]} 21. Bf1 {[%clk 0:00:45]}  Rc7 {[%clk 0:00:44]} 22. h4 {[%clk 0:00:45]}  Nb4 {[%clk 0:00:40]} 23. Qe2 {[%clk 0:00:44]}  Bc8 {[%clk 0:00:39]} 24. Nd4 {[%clk 0:00:41]}  Nxd4 {[%clk 0:00:29]} 25. Bxd4 {[%clk 0:00:41]}  Bxd4 {[%clk 0:00:26]} 26. Rxd4 {[%clk 0:00:42]}  Ba6 {[%clk 0:00:19]} 27. e5 {[%clk 0:00:42]}  Qc5 {[%clk 0:00:18]} 28. Rbd1 {[%clk 0:00:41]}  Nd3 {[%clk 0:00:17]} 29. exd6 {[%clk 0:00:36]}  exd6 {[%clk 0:00:17]} 30. Re4 {[%clk 0:00:33]}  Rxb2 {[%clk 0:00:15]} 31. Rd2 {[%clk 0:00:32]}  Rcb7 {[%clk 0:00:12]} 32. Re8+ {[%clk 0:00:25]}  Kg7 {[%clk 0:00:12]} 33. Ne4 {[%clk 0:00:26]}  Qd4 {[%clk 0:00:10]} 34. h5 {[%clk 0:00:24]}  Rxd2 {[%clk 0:00:10]} 35. Qxd2 {[%clk 0:00:24]}  h6 {[%clk 0:00:06]} 36. hxg6 {[%clk 0:00:24]}  fxg6 {[%clk 0:00:05]} 37. Nxd6 {[%clk 0:00:20]}  Rd7 {[%clk 0:00:04]} 38. Qe2 {[%clk 0:00:16]}  Qf6 {[%clk 0:00:02]} 39. Ne4 {[%clk 0:00:16]}  Qf7 {[%clk 0:00:02]} 40. Re6 {[%clk 0:00:13]}  c3 {[%clk 0:00:02]} 41. Nxc3 {[%clk 0:00:13]}  Nc5 {[%clk 0:00:02]} 42. Qe5+ {[%clk 0:00:12]}  Kh7 {[%clk 0:00:02]} 43. Re8 {[%clk 0:00:11]}  Bxf1 {[%clk 0:00:01]} 44. Rh8# {[%clk 0:00:10]} 1-0


[Site "https://www.chess.com"]

[Event "Titled Tuesday Blitz March 29 Early 2022"]
[White "Hernandez Jimenez, Alexander Andres"]
[Black "Lehtosaari, Mauri"]
[WhiteFideId "3900452"]
[BlackFideId "501999"]
[WhiteElo "2082"]
[BlackElo "2507"]
[Result "1/2-1/2"]
[Round "07"]
[TimeControl "180+1"]
[Date "2022.03.30"]
[WhiteClock "0:00:04"]
[BlackClock "0:00:22"]

1. e4 {[%clk 0:03:00]}  d5 {[%clk 0:02:58]} 2. exd5 {[%clk 0:03:00]}  Qxd5 {[%clk 0:02:59]} 3. Nc3 {[%clk 0:03:01]}  Qe5+ {[%clk 0:02:56]} 4. Be2 {[%clk 0:02:57]}  c6 {[%clk 0:02:56]} 5. Nf3 {[%clk 0:02:57]}  Qc7 {[%clk 0:02:56]} 6. d3 {[%clk 0:02:57]}  Bg4 {[%clk 0:02:52]} 7. h3 {[%clk 0:02:56]}  Bh5 {[%clk 0:02:52]} 8. O-O {[%clk 0:02:57]}  Nf6 {[%clk 0:02:52]} 9. Bg5 {[%clk 0:02:55]}  Nbd7 {[%clk 0:02:51]} 10. Bh4 {[%clk 0:02:54]}  e6 {[%clk 0:02:51]} 11. Bg3 {[%clk 0:02:54]}  Bd6 {[%clk 0:02:46]} 12. Bxd6 {[%clk 0:02:53]}  Qxd6 {[%clk 0:02:47]} 13. Ne4 {[%clk 0:02:44]}  Qe7 {[%clk 0:02:36]} 14. Ng3 {[%clk 0:02:41]}  Bg6 {[%clk 0:02:36]} 15. Nh4 {[%clk 0:02:37]}  O-O {[%clk 0:02:35]} 16. Nxg6 {[%clk 0:02:37]}  hxg6 {[%clk 0:02:36]} 17. d4 {[%clk 0:02:37]}  Rfd8 {[%clk 0:02:34]} 18. c3 {[%clk 0:02:31]}  c5 {[%clk 0:02:32]} 19. dxc5 {[%clk 0:02:29]}  Nxc5 {[%clk 0:02:33]} 20. Qc2 {[%clk 0:02:28]}  Rac8 {[%clk 0:02:32]} 21. Rfd1 {[%clk 0:02:27]}  a6 {[%clk 0:02:27]} 22. Bf3 {[%clk 0:02:27]}  b5 {[%clk 0:02:25]} 23. Rxd8+ {[%clk 0:02:26]}  Rxd8 {[%clk 0:02:16]} 24. Rd1 {[%clk 0:02:26]}  Na4 {[%clk 0:02:03]} 25. b3 {[%clk 0:02:19]}  Rxd1+ {[%clk 0:01:58]} 26. Bxd1 {[%clk 0:02:19]}  Nc5 {[%clk 0:01:56]} 27. c4 {[%clk 0:02:18]}  Qd6 {[%clk 0:01:49]} 28. cxb5 {[%clk 0:02:15]}  axb5 {[%clk 0:01:48]} 29. b4 {[%clk 0:02:10]}  Na6 {[%clk 0:01:45]} 30. a3 {[%clk 0:02:10]}  Nd5 {[%clk 0:01:45]} 31. Be2 {[%clk 0:02:06]}  Nac7 {[%clk 0:01:45]} 32. Ne4 {[%clk 0:02:02]}  Qf4 {[%clk 0:01:44]} 33. Bf1 {[%clk 0:01:57]}  Qe5 {[%clk 0:01:41]} 34. Nc5 {[%clk 0:01:45]}  Qa1 {[%clk 0:01:37]} 35. Qb3 {[%clk 0:01:35]}  Nc3 {[%clk 0:01:31]} 36. g3 {[%clk 0:01:26]}  N7d5 {[%clk 0:01:30]} 37. Kg2 {[%clk 0:01:21]}  Qe1 {[%clk 0:01:26]} 38. Qc2 {[%clk 0:01:07]}  Nd1 {[%clk 0:01:20]} 39. Qe2 {[%clk 0:01:02]}  Qxe2 {[%clk 0:01:03]} 40. Bxe2 {[%clk 0:01:02]}  N1c3 {[%clk 0:01:04]} 41. Bd3 {[%clk 0:01:02]}  Kf8 {[%clk 0:01:03]} 42. Ne4 {[%clk 0:00:52]}  Ke7 {[%clk 0:00:59]} 43. Nxc3 {[%clk 0:00:50]}  Nxc3 {[%clk 0:01:00]} 44. Kf3 {[%clk 0:00:49]}  Kd6 {[%clk 0:00:57]} 45. Ke3 {[%clk 0:00:47]}  Kd5 {[%clk 0:00:48]} 46. f4 {[%clk 0:00:44]}  f5 {[%clk 0:00:45]} 47. g4 {[%clk 0:00:41]}  e5 {[%clk 0:00:34]} 48. gxf5 {[%clk 0:00:35]}  gxf5 {[%clk 0:00:34]} 49. fxe5 {[%clk 0:00:33]}  Kxe5 {[%clk 0:00:33]} 50. Kd2 {[%clk 0:00:33]}  Ne4+ {[%clk 0:00:26]} 51. Ke3 {[%clk 0:00:21]}  Nc3 {[%clk 0:00:24]} 52. Kd2 {[%clk 0:00:20]}  Ne4+ {[%clk 0:00:23]} 53. Ke3 {[%clk 0:00:21]}  Nd6 {[%clk 0:00:23]} 54. h4 {[%clk 0:00:18]}  g6 {[%clk 0:00:23]} 55. Be2 {[%clk 0:00:14]}  f4+ {[%clk 0:00:22]} 56. Kf3 {[%clk 0:00:13]}  Nf5 {[%clk 0:00:22]} 57. Bxb5 {[%clk 0:00:07]}  Nxh4+ {[%clk 0:00:23]} 58. Kg4 {[%clk 0:00:08]}  Nf5 {[%clk 0:00:22]} 59. Bc6 {[%clk 0:00:08]}  Nd4 {[%clk 0:00:22]} 60. b5 {[%clk 0:00:03]}  Kd6 {[%clk 0:00:20]} 61. Kxf4 {[%clk 0:00:02]}  Nxc6 {[%clk 0:00:19]} 62. bxc6 {[%clk 0:00:03]}  Kxc6 {[%clk 0:00:20]} 63. Kg5 {[%clk 0:00:03]}  Kb5 {[%clk 0:00:21]} 64. Kxg6 {[%clk 0:00:04]}  Ka4 {[%clk 0:00:21]} 65. Kf5 {[%clk 0:00:04]}  Kxa3 {[%clk 0:00:22]} 1/2-1/2


[Site "https://www.chess.com"]

[Event "Titled Tuesday Blitz March 29 Early 2022"]
[White "Horak, Martin"]
[Black "Legenia, Artem"]
[WhiteFideId "367095"]
[BlackFideId "14136945"]
[WhiteElo "1997"]
[BlackElo "1936"]
[Result "0-1"]
[Round "07"]
[TimeControl "180+1"]
[Date "2022.03.30"]
[WhiteClock "0:00:33"]
[BlackClock "0:01:00"]

1. d4 {[%clk 0:03:00]}  e6 {[%clk 0:02:43]} 2. c4 {[%clk 0:02:46]}  Nf6 {[%clk 0:02:38]} 3. g3 {[%clk 0:02:45]}  Bb4+ {[%clk 0:02:35]} 4. Nd2 {[%clk 0:02:44]}  O-O {[%clk 0:02:34]} 5. Bg2 {[%clk 0:02:44]}  d6 {[%clk 0:02:33]} 6. Nf3 {[%clk 0:02:42]}  Bxd2+ {[%clk 0:02:33]} 7. Qxd2 {[%clk 0:02:33]}  Nc6 {[%clk 0:02:10]} 8. O-O {[%clk 0:02:27]}  e5 {[%clk 0:01:53]} 9. e3 {[%clk 0:01:45]}  Bg4 {[%clk 0:01:51]} 10. b3 {[%clk 0:01:44]}  Re8 {[%clk 0:01:42]} 11. dxe5 {[%clk 0:01:32]}  dxe5 {[%clk 0:01:37]} 12. Bb2 {[%clk 0:01:24]}  Bxf3 {[%clk 0:01:30]} 13. Qxd8 {[%clk 0:01:23]}  Raxd8 {[%clk 0:01:30]} 14. Bxf3 {[%clk 0:01:24]}  Rd2 {[%clk 0:01:22]} 15. Bc3 {[%clk 0:01:20]}  Rc2 {[%clk 0:01:21]} 16. Rfc1 {[%clk 0:01:07]}  Rxc1+ {[%clk 0:01:18]} 17. Rxc1 {[%clk 0:01:07]}  e4 {[%clk 0:01:14]} 18. Bg2 {[%clk 0:01:04]}  Nd7 {[%clk 0:01:03]} 19. Rd1 {[%clk 0:00:58]}  Nc5 {[%clk 0:01:03]} 20. b4 {[%clk 0:00:54]}  Na4 {[%clk 0:01:02]} 21. Be1 {[%clk 0:00:38]}  Nb2 {[%clk 0:01:00]} 22. c5 {[%clk 0:00:33]}  Nxd1 {[%clk 0:01:00]} 0-1


[Site "https://www.chess.com"]

[Event "Titled Tuesday Blitz March 29 Early 2022"]
[White "Iljin, Timofey"]
[Black "Liyanage, Ranindu Dilshan"]
[WhiteFideId "14110180"]
[BlackFideId "9915834"]
[WhiteElo "2396"]
[BlackElo "1858"]
[Result "1-0"]
[Round "07"]
[TimeControl "180+1"]
[Date "2022.03.30"]
[WhiteClock "0:00:14"]
[BlackClock "0:00:15"]

1. e4 {[%clk 0:03:00]}  e5 {[%clk 0:02:57]} 2. d4 {[%clk 0:02:59]}  exd4 {[%clk 0:02:56]} 3. c3 {[%clk 0:02:59]}  d5 {[%clk 0:02:54]} 4. exd5 {[%clk 0:02:58]}  Qxd5 {[%clk 0:02:55]} 5. cxd4 {[%clk 0:02:59]}  Nc6 {[%clk 0:02:54]} 6. Nf3 {[%clk 0:02:59]}  Bg4 {[%clk 0:02:53]} 7. Nc3 {[%clk 0:03:00]}  Bb4 {[%clk 0:02:53]} 8. Be2 {[%clk 0:03:00]}  Nf6 {[%clk 0:02:47]} 9. O-O {[%clk 0:02:58]}  Bxc3 {[%clk 0:02:47]} 10. bxc3 {[%clk 0:02:57]}  O-O {[%clk 0:02:47]} 11. h3 {[%clk 0:02:54]}  Bf5 {[%clk 0:02:43]} 12. Be3 {[%clk 0:02:53]}  Ne4 {[%clk 0:02:35]} 13. c4 {[%clk 0:02:52]}  Qd6 {[%clk 0:02:33]} 14. d5 {[%clk 0:02:45]}  Nc3 {[%clk 0:02:22]} 15. Qd2 {[%clk 0:02:37]}  Nxe2+ {[%clk 0:02:22]} 16. Qxe2 {[%clk 0:02:38]}  Ne7 {[%clk 0:02:21]} 17. Rfd1 {[%clk 0:02:33]}  b6 {[%clk 0:02:16]} 18. Nd4 {[%clk 0:02:31]}  Bd7 {[%clk 0:02:14]} 19. Bf4 {[%clk 0:02:21]}  Qxf4 {[%clk 0:02:06]} 20. Qxe7 {[%clk 0:02:21]}  Rad8 {[%clk 0:02:06]} 21. Nc6 {[%clk 0:02:02]}  Bxc6 {[%clk 0:01:49]} 22. dxc6 {[%clk 0:02:02]}  Rde8 {[%clk 0:01:49]} 23. Qd7 {[%clk 0:01:56]}  Re2 {[%clk 0:01:26]} 24. Rf1 {[%clk 0:01:46]}  Rc2 {[%clk 0:01:26]} 25. Rae1 {[%clk 0:01:39]}  Qxc4 {[%clk 0:01:04]} 26. Qxc7 {[%clk 0:01:30]}  Qxc6 {[%clk 0:01:00]} 27. Qxa7 {[%clk 0:01:27]}  g6 {[%clk 0:01:00]} 28. a3 {[%clk 0:01:19]}  b5 {[%clk 0:00:58]} 29. Qe7 {[%clk 0:01:16]}  Ra8 {[%clk 0:00:50]} 30. Rd1 {[%clk 0:01:10]}  Qc7 {[%clk 0:00:39]} 31. Qb4 {[%clk 0:01:06]}  Qc6 {[%clk 0:00:35]} 32. Rfe1 {[%clk 0:00:51]}  Rc4 {[%clk 0:00:34]} 33. Qe7 {[%clk 0:00:48]}  Kg7 {[%clk 0:00:22]} 34. Rd7 {[%clk 0:00:40]}  Qf6 {[%clk 0:00:23]} 35. Qxf6+ {[%clk 0:00:23]}  Kxf6 {[%clk 0:00:23]} 36. Ree7 {[%clk 0:00:23]}  Rxa3 {[%clk 0:00:21]} 37. Rxf7+ {[%clk 0:00:23]}  Kg5 {[%clk 0:00:22]} 38. g3 {[%clk 0:00:18]}  h6 {[%clk 0:00:15]} 39. Rd5# {[%clk 0:00:14]} 1-0


[Site "https://www.chess.com"]

[Event "Titled Tuesday Blitz March 29 Early 2022"]
[White "Ilyasli, Ughur"]
[Black "Dev, Shah"]
[WhiteFideId "13416197"]
[BlackFideId "35019058"]
[WhiteElo "2045"]
[BlackElo "2075"]
[Result "1-0"]
[Round "07"]
[TimeControl "180+1"]
[Date "2022.03.30"]
[WhiteClock "0:00:12"]
[BlackClock "0:00:04"]

1. d4 {[%clk 0:03:00]}  d5 {[%clk 0:02:59]} 2. c4 {[%clk 0:03:01]}  c6 {[%clk 0:02:56]} 3. Nf3 {[%clk 0:03:01]}  Nf6 {[%clk 0:02:56]} 4. e3 {[%clk 0:03:01]}  Bf5 {[%clk 0:02:55]} 5. Qb3 {[%clk 0:02:55]}  Qb6 {[%clk 0:02:53]} 6. cxd5 {[%clk 0:02:52]}  Qxb3 {[%clk 0:02:51]} 7. axb3 {[%clk 0:02:52]}  cxd5 {[%clk 0:02:51]} 8. Nc3 {[%clk 0:02:51]}  e6 {[%clk 0:02:48]} 9. Ne5 {[%clk 0:02:38]}  Bb4 {[%clk 0:02:45]} 10. Bb5+ {[%clk 0:02:36]}  Ke7 {[%clk 0:02:44]} 11. Bd2 {[%clk 0:02:25]}  Nbd7 {[%clk 0:02:42]} 12. Nxd7 {[%clk 0:02:20]}  Bxc3 {[%clk 0:02:35]} 13. bxc3 {[%clk 0:01:52]}  Nxd7 {[%clk 0:02:33]} 14. Bc1 {[%clk 0:01:47]}  Rhc8 {[%clk 0:02:31]} 15. Ba3+ {[%clk 0:01:47]}  Kd8 {[%clk 0:02:30]} 16. Kd2 {[%clk 0:01:46]}  Nf6 {[%clk 0:02:27]} 17. f3 {[%clk 0:01:46]}  a6 {[%clk 0:02:26]} 18. Be2 {[%clk 0:01:44]}  b5 {[%clk 0:02:24]} 19. Bb4 {[%clk 0:01:41]}  Nd7 {[%clk 0:02:21]} 20. Ra5 {[%clk 0:01:37]}  Kc7 {[%clk 0:02:11]} 21. Rha1 {[%clk 0:01:34]}  Kb7 {[%clk 0:02:11]} 22. g4 {[%clk 0:01:19]}  Bg6 {[%clk 0:02:10]} 23. h4 {[%clk 0:00:59]}  h5 {[%clk 0:02:09]} 24. gxh5 {[%clk 0:00:42]}  Bxh5 {[%clk 0:02:09]} 25. Rg1 {[%clk 0:00:41]}  g6 {[%clk 0:02:05]} 26. Rga1 {[%clk 0:00:36]}  Nb8 {[%clk 0:01:46]} 27. Bxb5 {[%clk 0:00:30]}  Bxf3 {[%clk 0:01:46]} 28. Bd6 {[%clk 0:00:25]}  Be4 {[%clk 0:01:04]} 29. Be2 {[%clk 0:00:21]}  Rc6 {[%clk 0:00:57]} 30. Bxb8 {[%clk 0:00:20]}  Kxb8 {[%clk 0:00:53]} 31. Rxa6 {[%clk 0:00:18]}  Raxa6 {[%clk 0:00:53]} 32. Rxa6 {[%clk 0:00:19]}  Rc8 {[%clk 0:00:53]} 33. c4 {[%clk 0:00:17]}  Rh8 {[%clk 0:00:53]} 34. c5 {[%clk 0:00:15]}  Rxh4 {[%clk 0:00:53]} 35. Rb6+ {[%clk 0:00:12]}  Kc7 {[%clk 0:00:52]} 36. Ba6 {[%clk 0:00:12]}  Rh2+ {[%clk 0:00:51]} 37. Kc3 {[%clk 0:00:11]}  Rh3 {[%clk 0:00:29]} 38. Kb4 {[%clk 0:00:11]}  Rxe3 {[%clk 0:00:28]} 39. Rb7+ {[%clk 0:00:11]}  Kc6 {[%clk 0:00:24]} 40. Rxf7 {[%clk 0:00:12]}  Bd3 {[%clk 0:00:04]} 41. Bb7# {[%clk 0:00:12]} 1-0


[Site "https://www.chess.com"]

[Event "Titled Tuesday Blitz March 29 Early 2022"]
[White "Jary, Sergey"]
[Black "Vasquez Schroeder, Rodrigo"]
[WhiteFideId "14110350"]
[BlackFideId "3400042"]
[WhiteElo "2260"]
[BlackElo "2561"]
[Result "0-1"]
[Round "07"]
[TimeControl "180+1"]
[Date "2022.03.29"]
[WhiteClock "0:00:07"]
[BlackClock "0:00:16"]

1. e4 {[%clk 0:03:00]}  c5 {[%clk 0:02:59]} 2. Nf3 {[%clk 0:03:00]}  d6 {[%clk 0:02:59]} 3. d4 {[%clk 0:03:00]}  cxd4 {[%clk 0:03:00]} 4. Nxd4 {[%clk 0:03:01]}  Nf6 {[%clk 0:03:00]} 5. f3 {[%clk 0:03:01]}  a6 {[%clk 0:03:01]} 6. c4 {[%clk 0:03:01]}  e6 {[%clk 0:03:01]} 7. Nc3 {[%clk 0:03:01]}  Be7 {[%clk 0:03:01]} 8. Be3 {[%clk 0:03:01]}  O-O {[%clk 0:03:02]} 9. Qd2 {[%clk 0:03:01]}  b6 {[%clk 0:02:59]} 10. Be2 {[%clk 0:03:01]}  Bb7 {[%clk 0:02:59]} 11. O-O {[%clk 0:03:00]}  Nc6 {[%clk 0:02:57]} 12. Rfd1 {[%clk 0:02:59]}  Rc8 {[%clk 0:02:55]} 13. Rac1 {[%clk 0:02:58]}  Ne5 {[%clk 0:02:53]} 14. b3 {[%clk 0:02:56]}  Qc7 {[%clk 0:02:53]} 15. Na4 {[%clk 0:02:50]}  Ned7 {[%clk 0:02:51]} 16. b4 {[%clk 0:02:49]}  Qb8 {[%clk 0:02:48]} 17. a3 {[%clk 0:02:47]}  Bd8 {[%clk 0:02:48]} 18. Nb3 {[%clk 0:02:45]}  Bc7 {[%clk 0:02:45]} 19. Bf4 {[%clk 0:02:45]}  Ne5 {[%clk 0:02:39]} 20. Bxe5 {[%clk 0:02:45]}  dxe5 {[%clk 0:02:39]} 21. c5 {[%clk 0:02:46]}  b5 {[%clk 0:02:39]} 22. Nc3 {[%clk 0:02:44]}  Rcd8 {[%clk 0:02:35]} 23. Qe3 {[%clk 0:02:43]}  Bc6 {[%clk 0:02:35]} 24. Rxd8 {[%clk 0:02:28]}  Rxd8 {[%clk 0:02:34]} 25. Rd1 {[%clk 0:02:29]}  Rxd1+ {[%clk 0:02:32]} 26. Bxd1 {[%clk 0:02:29]}  Qd8 {[%clk 0:02:23]} 27. Be2 {[%clk 0:02:27]}  h6 {[%clk 0:02:23]} 28. Qd2 {[%clk 0:02:21]}  Qe7 {[%clk 0:02:21]} 29. Kf2 {[%clk 0:02:08]}  Nd7 {[%clk 0:02:13]} 30. g3 {[%clk 0:02:04]}  Nf6 {[%clk 0:02:11]} 31. Kg2 {[%clk 0:02:03]}  Kh7 {[%clk 0:02:10]} 32. Nc1 {[%clk 0:01:57]}  g5 {[%clk 0:01:57]} 33. h3 {[%clk 0:01:51]}  Kg7 {[%clk 0:01:53]} 34. Bd1 {[%clk 0:01:41]}  Kg6 {[%clk 0:01:39]} 35. a4 {[%clk 0:01:41]}  bxa4 {[%clk 0:01:33]} 36. Bxa4 {[%clk 0:01:40]}  Bb7 {[%clk 0:01:33]} 37. Qe2 {[%clk 0:01:28]}  Qd8 {[%clk 0:01:28]} 38. Qd3 {[%clk 0:01:27]}  Qa8 {[%clk 0:01:19]} 39. Bb3 {[%clk 0:01:21]}  h5 {[%clk 0:01:17]} 40. g4 {[%clk 0:01:20]}  hxg4 {[%clk 0:01:16]} 41. hxg4 {[%clk 0:01:21]}  Bc6 {[%clk 0:01:13]} 42. Ba4 {[%clk 0:01:19]}  Bxa4 {[%clk 0:01:06]} 43. Nxa4 {[%clk 0:01:18]}  Qb7 {[%clk 0:01:06]} 44. Qc3 {[%clk 0:01:12]}  Qb5 {[%clk 0:00:58]} 45. Nb2 {[%clk 0:01:12]}  Nd7 {[%clk 0:00:59]} 46. Qc4 {[%clk 0:01:10]}  Qc6 {[%clk 0:00:48]} 47. Ncd3 {[%clk 0:01:08]}  Nb8 {[%clk 0:00:47]} 48. Qc3 {[%clk 0:01:05]}  f6 {[%clk 0:00:44]} 49. Qc4 {[%clk 0:00:54]}  Kf7 {[%clk 0:00:43]} 50. Kg3 {[%clk 0:00:53]}  Qd7 {[%clk 0:00:39]} 51. Nd1 {[%clk 0:00:51]}  Qa4 {[%clk 0:00:34]} 52. Ne3 {[%clk 0:00:51]}  Qa1 {[%clk 0:00:33]} 53. Qc2 {[%clk 0:00:42]}  Qd4 {[%clk 0:00:32]} 54. Nc4 {[%clk 0:00:38]}  Nc6 {[%clk 0:00:31]} 55. Kg2 {[%clk 0:00:31]}  Qa1 {[%clk 0:00:25]} 56. Nd6+ {[%clk 0:00:28]}  Ke7 {[%clk 0:00:25]} 57. b5 {[%clk 0:00:26]}  Nd4 {[%clk 0:00:24]} 58. Qb3 {[%clk 0:00:16]}  Qa5 {[%clk 0:00:16]} 59. Qd1 {[%clk 0:00:13]}  axb5 {[%clk 0:00:16]} 60. Qe1 {[%clk 0:00:10]}  Qxe1 {[%clk 0:00:14]} 61. Nxe1 {[%clk 0:00:10]}  Bxd6 {[%clk 0:00:15]} 62. cxd6+ {[%clk 0:00:10]}  Kxd6 {[%clk 0:00:16]} 63. Nd3 {[%clk 0:00:09]}  Nc6 {[%clk 0:00:16]} 64. Kf2 {[%clk 0:00:09]}  b4 {[%clk 0:00:16]} 65. Ke3 {[%clk 0:00:09]}  b3 {[%clk 0:00:16]} 66. Kd2 {[%clk 0:00:08]}  Nd4 {[%clk 0:00:16]} 67. Ne1 {[%clk 0:00:09]}  Kc5 {[%clk 0:00:15]} 68. Kc3 {[%clk 0:00:09]}  Kb5 {[%clk 0:00:16]} 69. Kb2 {[%clk 0:00:07]}  Kc4 {[%clk 0:00:16]} 0-1


[Site "https://www.chess.com"]

[Event "Titled Tuesday Blitz March 29 Early 2022"]
[White "Jeet, Jain"]
[Black "Kostina, Nadezhda"]
[WhiteFideId "5073022"]
[BlackFideId "4195876"]
[WhiteElo "2085"]
[BlackElo "1982"]
[Result "1-0"]
[Round "07"]
[TimeControl "180+1"]
[Date "2022.03.30"]
[WhiteClock "0:00:22"]
[BlackClock "0:00:04"]

1. d4 {[%clk 0:03:00]}  Nf6 {[%clk 0:02:59]} 2. Nf3 {[%clk 0:03:01]}  e6 {[%clk 0:02:58]} 3. Bf4 {[%clk 0:03:01]}  b6 {[%clk 0:02:55]} 4. e3 {[%clk 0:03:01]}  Bb7 {[%clk 0:02:55]} 5. Nbd2 {[%clk 0:03:01]}  c5 {[%clk 0:02:55]} 6. c3 {[%clk 0:03:01]}  d5 {[%clk 0:02:50]} 7. Bd3 {[%clk 0:03:00]}  Bd6 {[%clk 0:02:50]} 8. Ne5 {[%clk 0:02:56]}  O-O {[%clk 0:02:47]} 9. Qf3 {[%clk 0:02:53]}  Nbd7 {[%clk 0:02:42]} 10. Qh3 {[%clk 0:02:52]}  cxd4 {[%clk 0:02:38]} 11. exd4 {[%clk 0:02:51]}  Ne4 {[%clk 0:02:17]} 12. f3 {[%clk 0:02:45]}  Nef6 {[%clk 0:02:00]} 13. Nxd7 {[%clk 0:02:32]}  Qxd7 {[%clk 0:01:58]} 14. Be5 {[%clk 0:02:30]}  Rfe8 {[%clk 0:01:24]} 15. Bxf6 {[%clk 0:02:30]}  gxf6 {[%clk 0:01:24]} 16. Qxh7+ {[%clk 0:02:24]}  Kf8 {[%clk 0:01:24]} 17. Nf1 {[%clk 0:02:04]}  Ke7 {[%clk 0:01:23]} 18. Qh4 {[%clk 0:01:39]}  Rh8 {[%clk 0:01:14]} 19. Qf2 {[%clk 0:01:37]}  Qa4 {[%clk 0:01:11]} 20. Qc2 {[%clk 0:01:34]}  Qa5 {[%clk 0:01:06]} 21. h4 {[%clk 0:01:34]}  Rag8 {[%clk 0:01:00]} 22. g4 {[%clk 0:01:33]}  e5 {[%clk 0:00:52]} 23. dxe5 {[%clk 0:01:24]}  fxe5 {[%clk 0:00:52]} 24. Ng3 {[%clk 0:01:17]}  Bc8 {[%clk 0:00:32]} 25. h5 {[%clk 0:01:14]}  e4 {[%clk 0:00:31]} 26. Nxe4 {[%clk 0:01:06]}  dxe4 {[%clk 0:00:30]} 27. Bxe4 {[%clk 0:01:07]}  Bg3+ {[%clk 0:00:29]} 28. Kf1 {[%clk 0:01:04]}  f5 {[%clk 0:00:17]} 29. gxf5 {[%clk 0:00:47]}  Ba6+ {[%clk 0:00:15]} 30. Bd3 {[%clk 0:00:46]}  Rd8 {[%clk 0:00:10]} 31. Qe2+ {[%clk 0:00:46]}  Kf8 {[%clk 0:00:08]} 32. Bxa6 {[%clk 0:00:45]}  Qxf5 {[%clk 0:00:08]} 33. Rg1 {[%clk 0:00:41]}  Bf4 {[%clk 0:00:05]} 34. Qe4 {[%clk 0:00:35]}  Qh3+ {[%clk 0:00:04]} 35. Rg2 {[%clk 0:00:29]}  Qh1+ {[%clk 0:00:03]} 36. Kf2 {[%clk 0:00:25]}  Rd2+ {[%clk 0:00:04]} 37. Be2 {[%clk 0:00:25]}  Qh4+ {[%clk 0:00:04]} 38. Kg1 {[%clk 0:00:22]} 1-0


[Site "https://www.chess.com"]

[Event "Titled Tuesday Blitz March 29 Early 2022"]
[White "Karolczuk, Iwo"]
[Black "Garv Gaur"]
[WhiteFideId "21816972"]
[BlackFideId "45030839"]
[WhiteElo "2243"]
[BlackElo "1950"]
[Result "1-0"]
[Round "07"]
[TimeControl "180+1"]
[Date "2022.03.30"]
[WhiteClock "0:00:07"]
[BlackClock "0:00:06"]

1. e4 {[%clk 0:02:58]}  c6 {[%clk 0:02:59]} 2. Nc3 {[%clk 0:02:55]}  d5 {[%clk 0:02:59]} 3. Qf3 {[%clk 0:02:56]}  Nf6 {[%clk 0:02:56]} 4. d3 {[%clk 0:02:54]}  e6 {[%clk 0:02:56]} 5. Bd2 {[%clk 0:02:54]}  Qb6 {[%clk 0:02:54]} 6. Rb1 {[%clk 0:02:52]}  Nbd7 {[%clk 0:02:53]} 7. g3 {[%clk 0:02:40]}  Ne5 {[%clk 0:02:46]} 8. Qe2 {[%clk 0:02:38]}  Bb4 {[%clk 0:02:46]} 9. Bg2 {[%clk 0:02:35]}  dxe4 {[%clk 0:02:18]} 10. Nxe4 {[%clk 0:02:30]}  Bxd2+ {[%clk 0:02:17]} 11. Nxd2 {[%clk 0:02:29]}  Ng6 {[%clk 0:02:14]} 12. h4 {[%clk 0:02:24]}  e5 {[%clk 0:02:07]} 13. h5 {[%clk 0:02:22]}  Bg4 {[%clk 0:02:04]} 14. Bf3 {[%clk 0:02:16]}  Bxf3 {[%clk 0:02:05]} 15. Ngxf3 {[%clk 0:02:17]}  Ne7 {[%clk 0:02:04]} 16. Nxe5 {[%clk 0:02:01]}  O-O {[%clk 0:02:03]} 17. O-O {[%clk 0:01:49]}  Nf5 {[%clk 0:02:02]} 18. Kg2 {[%clk 0:01:24]}  Rae8 {[%clk 0:01:54]} 19. Ndf3 {[%clk 0:01:10]}  Nd4 {[%clk 0:01:52]} 20. Qd2 {[%clk 0:01:03]}  Nxf3 {[%clk 0:01:18]} 21. Nxf3 {[%clk 0:01:03]}  h6 {[%clk 0:01:18]} 22. Rh1 {[%clk 0:00:44]}  Qc5 {[%clk 0:01:17]} 23. c3 {[%clk 0:00:42]}  Nxh5 {[%clk 0:01:14]} 24. Rh4 {[%clk 0:00:38]}  Nf6 {[%clk 0:01:00]} 25. Rbh1 {[%clk 0:00:35]}  Qf5 {[%clk 0:00:50]} 26. Nd4 {[%clk 0:00:21]}  Qg6 {[%clk 0:00:46]} 27. Rf4 {[%clk 0:00:19]}  Re5 {[%clk 0:00:45]} 28. Nf3 {[%clk 0:00:19]}  Rh5 {[%clk 0:00:39]} 29. Nh4 {[%clk 0:00:18]}  Qg5 {[%clk 0:00:36]} 30. Qd1 {[%clk 0:00:10]}  g6 {[%clk 0:00:23]} 31. Qf3 {[%clk 0:00:08]}  Nd5 {[%clk 0:00:21]} 32. Rg4 {[%clk 0:00:08]}  Qe5 {[%clk 0:00:18]} 33. Nxg6 {[%clk 0:00:08]}  fxg6 {[%clk 0:00:06]} 34. Rxg6+ {[%clk 0:00:08]}  Kh7 {[%clk 0:00:06]} 35. Rxh5 {[%clk 0:00:07]} 1-0


[Site "https://www.chess.com"]